bitfinex/quotes_ETHUSD_20260219
["timestamp","ask_amount","ask_price","bid_price","bid_amount"]
[1771505596349,1.28106681,1953.2,1952.8,0.001]
[1771505596559,1.05917585,1953.1,1952.8,0.001]
[1771505596857,1.05917585,1953.1,1952.8,1.09307804]
[1771505597362,1.05917585,1953.1,1952.8,2.3732903]
[1771505597565,1.05917585,1953.1,1952.8,0.001]
[1771505597746,1.05917585,1953.0,1952.8,0.001]
[1771505600090,1.05917585,1952.9,1952.7,0.001]
[1771505601662,1.05917585,1952.9,1952.8,0.001]
[1771505601974,1.05917585,1952.9,1952.7,0.001]
[1771505609397,1.0781,1953.0,1952.7,1.09307804]
[1771505609974,2.13727585,1953.0,1952.7,1.09307804]
[1771505610514,3.41737209,1953.0,1952.7,1.09307804]
[1771505611803,2.35819624,1953.0,1952.7,1.09307804]
[1771505612315,1.05917585,1952.9,1952.7,0.001]
[1771505612513,1.05917585,1952.9,1952.6,0.001]
[1771505613592,1.05917585,1952.9,1952.5,1.09307804]
[1771505613912,1.05917585,1952.9,1952.8,0.001]
[1771505614109,2.33938887,1952.8,1952.5,1.09307804]
[1771505614411,2.33938887,1952.8,1952.7,0.001]
[1771505614615,2.33938887,1952.8,1952.5,1.09307804]
[1771505615488,1.05917585,1952.5,1952.3,0.001]
[1771505616210,1.05917585,1952.5,1952.2,0.001]
[1771505616211,2.33963843,1952.5,1952.2,0.001]
[1771505616711,1.12317207,1952.4,1952.2,0.001]
[1771505617813,1.12317207,1952.4,1952.0,0.001]
[1771505617814,1.12317207,1952.3,1952.0,0.001]
[1771505620190,2.40373656,1952.3,1952.0,0.001]
[1771505620728,2.40373656,1952.3,1951.9,1.08227331]
[1771505620729,1.12317207,1952.2,1951.9,1.02327331]
[1771505623228,3.48664738,1952.4,1951.9,1.02327331]
[1771505623438,3.48664738,1952.4,1951.9,1.28079462]
[1771505623598,3.48664738,1952.4,1952.0,1.08127331]
[1771505623599,1.086,1952.4,1952.0,1.08127331]
[1771505625228,1.086,1952.4,1952.1,1.08127331]
[1771505625930,1.086,1952.4,1952.1,1.08227331]
[1771505626428,0.0011,1952.3,1952.1,1.08227331]
[1771505628207,1.12427207,1952.3,1952.0,0.001]
[1771505630032,1.28060649,1952.2,1952.0,0.001]
[1771505630947,2.40481297,1952.3,1952.0,1.08227331]
[1771505633577,1.12317207,1952.1,1951.6,1.08127331]
[1771505633713,6.80154273,1951.7,1951.4,1.81198956]
[1771505633914,1.12317207,1951.7,1951.4,1.81198956]
[1771505634153,2.40411995,1951.7,1951.4,1.81198956]
[1771505634842,1.12317207,1951.6,1951.1,1.28130057]
[1771505635015,1.12317207,1951.6,1951.1,2.36257388]
[1771505635344,1.12317207,1951.6,1951.1,1.08127331]
[1771505635515,1.12317207,1951.4,1951.1,1.08127331]
[1771505636315,1.12317207,1951.3,1950.7,1.28159122]
[1771505636615,1.12317207,1951.3,1950.8,1.08127331]
[1771505637551,2.21517207,1951.2,1950.8,1.08127331]
[1771505639017,2.21517207,1951.2,1950.8,1.08227331]
[1771505639214,9.17485332,1951.2,1950.8,1.08227331]
[1771505639442,1.12317207,1951.1,1950.8,1.08227331]
[1771505640533,1.06918416,1951.6,1950.9,1.13859414]
[1771505640738,2.16218416,1951.6,1951.0,1.13859414]
[1771505640932,1.06918416,1951.6,1951.2,1.13859414]
[1771505641265,13.38289356,1951.9,1951.2,1.13859414]
[1771505641266,2.16218416,1951.7,1951.2,1.13859414]
[1771505641561,1.06918416,1951.6,1951.2,1.13859414]
[1771505641760,1.093,1951.7,1951.2,1.13859414]
[1771505642563,1.06918416,1951.8,1951.2,1.13859414]
[1771505642758,2.16218416,1951.8,1951.2,1.13859414]
[1771505642965,1.06918416,1951.9,1951.2,1.13859414]
[1771505643259,2.16218416,1951.9,1951.4,1.13859414]
[1771505643438,2.34999183,1951.9,1951.4,1.13859414]
[1771505643972,1.28080767,1951.9,1951.4,1.13859414]
[1771505644139,1.06918416,1951.8,1951.4,1.13859414]
[1771505645075,1.06918416,1951.6,1951.0,1.13859414]
[1771505647178,1.06918416,1951.6,1951.2,1.07165055]
[1771505649657,1.06918416,1951.6,1951.3,1.07165055]
[1771505651195,1.28096022,1951.7,1951.3,1.07165055]
[1771505651196,2.33932215,1951.8,1951.3,1.07165055]
[1771505651392,1.05840194,1951.7,1951.3,1.07165055]
[1771505651598,1.05840194,1951.7,1951.3,1.07265055]
[1771505651760,0.0011,1951.5,1951.3,1.07265055]
[1771505655900,0.0011,1951.5,1951.4,1.07165055]
[1771505656105,1.05840194,1951.8,1951.5,1.07165055]
[1771505656269,2.15240194,1951.9,1951.5,1.07165055]
[1771505656478,1.05840194,1951.8,1951.5,1.07165055]
[1771505656999,1.094,1951.9,1951.5,1.07165055]
[1771505657200,1.05840194,1952.0,1951.5,1.07165055]
[1771505657201,2.15240194,1952.0,1951.5,1.07165055]
[1771505657677,1.05840194,1951.9,1951.5,1.07165055]
[1771505658085,1.05840194,1951.9,1951.5,2.3526951]
[1771505658822,1.05840194,1951.9,1951.3,0.001]
[1771505658823,1.05840194,1951.8,1951.3,2.35380501]
[1771505658992,1.05840194,1951.6,1951.3,0.001]
[1771505659987,1.05840194,1951.6,1951.3,1.07265055]
[1771505663507,1.05840194,1951.5,1951.3,0.001]
[1771505664376,1.05840194,1951.7,1951.3,1.07265055]
[1771505665311,1.05840194,1951.6,1951.3,1.07265055]
[1771505665807,1.05840194,1951.6,1951.3,0.001]
[1771505666608,1.05840194,1951.4,1951.3,0.001]
[1771505668411,1.05950194,1951.5,1951.3,0.001]
[1771505668981,0.0011,1951.5,1951.3,1.07265055]
[1771505670927,1.05950194,1951.5,1951.3,0.001]
[1771505673410,2.15650194,1951.5,1951.3,0.001]
[1771505674730,3.43757395,1951.5,1951.3,0.001]
[1771505675604,2.15650194,1951.5,1951.3,0.001]
[1771505675800,1.05950194,1951.5,1951.3,0.001]
[1771505676000,2.15850194,1951.5,1951.3,0.001]
[1771505677322,3.43957223,1951.5,1951.3,0.001]
[1771505678233,3.43957223,1951.5,1951.2,0.001]
[1771505678234,1.1489805,1951.4,1951.2,0.001]
[1771505678706,1.1489805,1951.4,1951.1,0.001]
[1771505679727,1.101,1951.3,1951.1,1.15609513]
[1771505679926,2.43116149,1951.5,1951.1,1.15609513]
[1771505680126,1.101,1951.4,1951.1,1.15609513]
[1771505680445,2.43014304,1951.4,1951.1,1.15609513]
[1771505680737,1.101,1951.3,1951.1,1.15609513]
[1771505683746,1.1489805,1951.4,1951.1,1.15609513]
[1771505683948,2.2499805,1951.4,1951.1,1.15609513]
[1771505684121,1.101,1951.4,1951.1,1.15609513]
[1771505684948,2.2499805,1951.4,1951.1,1.15609513]
[1771505686147,3.53111647,1951.4,1951.1,1.15609513]
[1771505686348,2.2499805,1951.4,1951.1,1.15609513]
[1771505686715,3.53111489,1951.4,1951.1,1.15609513]
[1771505687847,2.2499805,1951.4,1951.1,1.15609513]
[1771505688051,1.101,1951.4,1951.2,1.15509513]
[1771505688249,1.101,1951.4,1951.1,1.15609513]
[1771505688870,2.2499805,1951.4,1951.1,1.15609513]
[1771505689415,1.1489805,1951.4,1951.1,1.15609513]
[1771505689617,2.2519805,1951.4,1951.1,1.15609513]
[1771505690856,1.28217333,1951.5,1951.1,1.15609513]
[1771505691157,1.104,1951.4,1951.2,1.15509513]
[1771505692361,1.1489805,1951.3,1951.1,0.001]
[1771505692855,1.1489805,1951.3,1951.2,0.001]
[1771505696160,5.1254723,1951.5,1951.2,1.15609513]
[1771505696161,1.1500805,1951.5,1951.2,1.15609513]
[1771505696394,1.106,1951.4,1951.2,1.15609513]
[1771505697365,1.107,1951.4,1951.2,1.15609513]
[1771505697762,2.2570805,1951.5,1951.2,1.15609513]
[1771505698368,3.53815808,1951.5,1951.2,1.15609513]
[1771505698670,1.1489805,1951.4,1951.2,0.001]
[1771505702987,1.109,1951.4,1951.2,1.11900397]
[1771505705690,1.109,1951.4,1951.3,0.001]
[1771505705986,1.11,1951.4,1951.3,0.001]
[1771505706154,1.1111,1951.4,1951.3,0.001]
[1771505708756,0.0011,1951.4,1951.3,0.001]
[1771505708957,1.16150982,1951.5,1951.3,0.001]
[1771505709557,1.16040982,1951.4,1951.2,0.001]
[1771505711191,2.27240982,1951.4,1951.2,0.001]
[1771505712986,2.39315806,1951.4,1951.2,0.001]
[1771505713189,1.16040982,1951.3,1951.2,0.001]
[1771505714092,2.44257569,1951.5,1951.2,0.001]
[1771505714393,1.114,1951.4,1951.2,0.001]
[1771505715813,2.44258056,1951.5,1951.2,0.001]
[1771505716019,3.55658056,1951.5,1951.2,0.001]
[1771505716315,1.16040982,1951.4,1951.2,0.001]
[1771505718517,1.16040982,1951.3,1951.2,0.001]
[1771505719482,1.16150982,1951.3,1951.1,0.001]
[1771505719683,1.16040982,1951.1,1950.5,1.3738652]
[1771505719916,1.16040982,1951.1,1950.6,0.09214352]
[1771505721186,1.16040982,1950.9,1950.5,0.09585851]
[1771505722199,0.0011,1951.3,1950.8,0.09768528]
[1771505722401,1.19757499,1950.8,1950.1,3.95535357]
[1771505722600,2.25857499,1950.8,1950.1,3.95535357]
[1771505723113,2.25857499,1950.8,1950.2,0.0018801]
[1771505725212,3.54010274,1950.8,1950.2,0.0018801]
[1771505725385,2.25857499,1950.8,1950.2,0.0018801]
[1771505725586,1.19757499,1950.9,1950.4,0.00558317]
[1771505727417,1.116,1951.2,1950.7,0.00918889]
[1771505727591,1.19757499,1951.1,1950.8,0.00918889]
[1771505727795,1.19757499,1951.1,1950.6,1.29080924]
[1771505728119,1.19757499,1951.1,1950.7,0.00918889]
[1771505729997,2.47892864,1951.1,1950.7,0.00918889]
[1771505730321,1.19757499,1951.0,1950.7,0.00918889]
[1771505731296,1.19757499,1951.0,1950.5,1.29785456]
[1771505732132,1.19757499,1950.8,1950.5,0.01618084]
[1771505732513,1.19757499,1950.8,1950.4,1.29963991]
[1771505732825,1.19757499,1950.8,1950.4,1.28176388]
[1771505734099,1.19757499,1950.8,1950.3,5.14520059]
[1771505734296,1.19757499,1950.8,1950.3,1.2997301]
[1771505735010,1.19757499,1950.7,1950.3,1.2997301]
[1771505737004,1.19757499,1950.6,1950.2,1.28289532]
[1771505738407,1.19757499,1950.6,1950.2,0.03020599]
[1771505740826,1.19757499,1950.6,1950.3,1.28185407]
[1771505741024,1.19757499,1950.6,1950.3,1.31414152]
[1771505741325,1.19757499,1950.6,1950.3,0.03228745]
[1771505743232,1.19757499,1950.8,1950.4,1.31854218]
[1771505743422,1.19757499,1950.8,1950.5,0.03675383]
[1771505743928,0.0011,1950.9,1950.5,0.03675383]
[1771505744130,0.0011,1951.0,1950.6,0.03565383]
[1771505745305,0.0011,1951.0,1950.9,0.03855177]
[1771505749042,0.0011,1951.0,1950.9,1.3200116]
[1771505749246,0.0011,1951.2,1951.0,0.04303212]
[1771505749818,0.0011,1951.3,1951.1,1.28132848]
[1771505750017,0.0011,1951.3,1951.1,1.3243606]
[1771505751120,0.0011,1951.3,1951.1,0.04303212]
[1771505751924,0.0011,1951.3,1951.1,1.32436032]
[1771505753354,1.19977499,1951.3,1951.0,0.048373]
[1771505756148,1.19977499,1951.3,1951.0,1.32976229]
[1771505757056,0.0011,1951.3,1951.1,0.05222444]
[1771505757460,1.19977499,1951.3,1951.0,1.28138929]
[1771505758452,1.19977499,1951.3,1951.1,0.001]
[1771505758965,0.0011,1951.2,1951.1,0.001]
[1771505760640,1.20572031,1951.2,1951.1,0.001]
[1771505762255,0.0011,1951.2,1951.1,0.001]
[1771505765263,0.0011,1951.2,1951.1,0.001]
[1771505768983,1.22973335,1951.2,1951.1,0.001]
[1771505771687,1.22973335,1951.2,1951.0,0.001]
[1771505771862,0.0011,1951.1,1951.0,0.001]
[1771505772066,1.22973335,1951.1,1951.0,0.001]
[1771505774756,0.0011,1951.1,1951.0,0.001]
[1771505774953,0.0011,1951.1,1951.0,0.07412396]
[1771505778305,0.0011,1951.1,1951.0,1.35551811]
[1771505780018,0.0011,1951.5,1951.2,0.0705272]
[1771505780178,0.0011,1951.5,1951.4,1.35136637]
[1771505780379,0.0011,1951.5,1951.2,2.32321391]
[1771505780380,1.22973335,1951.5,1951.2,2.32321391]
[1771505780687,1.22863335,1951.3,1951.0,0.001]
[1771505782676,1.22863335,1951.2,1951.0,0.001]
[1771505783809,1.22863335,1951.2,1951.1,0.001]
[1771505784510,1.22973335,1951.2,1951.1,0.001]
[1771505786014,1.22863335,1951.1,1951.0,0.001]
[1771505786783,1.22973335,1951.2,1951.0,0.001]
[1771505787916,1.22973335,1951.2,1951.0,0.06930454]
[1771505787917,0.0011,1951.2,1951.0,0.06930454]
[1771505788486,1.22973335,1951.2,1951.0,0.001]
[1771505788686,1.22973335,1951.2,1950.9,0.001]
[1771505789111,1.22863335,1950.9,1950.6,2.32365586]
[1771505789418,1.22863335,1951.1,1950.7,0.06878811]
[1771505791412,1.22863335,1951.0,1950.7,0.06878811]
[1771505792423,1.22863335,1951.0,1950.6,1.28165586]
[1771505792625,1.22863335,1951.0,1950.6,1.34969189]
[1771505794123,1.22863335,1950.9,1950.5,1.28167385]
[1771505794894,1.22863335,1950.9,1950.4,0.06754807]
[1771505795096,1.22863335,1950.9,1950.4,1.34933642]
[1771505795335,1.22863335,1950.9,1950.4,1.28178835]
[1771505796134,1.22863335,1950.9,1950.4,0.0673122]
[1771505796825,1.22863335,1950.9,1950.7,0.001]
[1771505797223,1.21764921,1951.1,1950.7,0.001]
[1771505798498,1.21764921,1951.1,1950.7,1.28259122]
[1771505799632,1.21764921,1951.1,1950.8,1.14723047]
[1771505799823,0.0011,1951.2,1950.8,1.14723047]
[1771505800134,1.19877904,1951.3,1950.9,1.14723047]
[1771505800808,1.19877904,1951.3,1951.0,2.42862462]
[1771505801014,1.19877904,1951.3,1950.9,1.28140792]
[1771505801312,1.19877904,1951.3,1950.9,2.42863839]
[1771505801634,1.20023024,1951.2,1950.9,1.28140792]
[1771505802205,1.20386323,1951.3,1951.0,1.14723047]
[1771505802400,0.0011,1951.3,1951.0,1.14723047]
[1771505802606,1.20386323,1951.3,1951.0,1.14723047]
[1771505802810,1.20386323,1951.3,1951.0,2.42858892]
[1771505803724,0.0011,1951.3,1951.1,1.14723047]
[1771505804938,1.20881264,1951.3,1951.1,1.28126665]
[1771505805234,0.00243552,1951.3,1951.1,1.28126665]
[1771505806441,0.00243552,1951.3,1951.0,1.28136426]
[1771505807436,0.00243552,1951.3,1950.7,5.12730863]
[1771505807437,0.00905423,1951.1,1950.7,0.001]
[1771505807625,0.00905423,1951.1,1950.7,1.23859721]
[1771505808336,1.28225246,1951.4,1950.8,1.24375241]
[1771505808337,0.0011,1951.4,1950.8,1.24375241]
[1771505809340,0.00433831,1951.4,1950.8,1.24475241]
[1771505809534,0.0011,1951.2,1951.0,1.24375241]
[1771505810122,0.00428736,1951.5,1951.1,1.24537156]
[1771505810721,0.0011,1951.5,1951.1,1.24537156]
[1771505811028,0.00318736,1951.4,1951.1,1.24537156]
[1771505811331,5.68264285,1951.3,1950.9,2.52683139]
[1771505811644,0.00634028,1951.2,1950.9,2.52683139]
[1771505812217,0.00311888,1951.3,1950.9,2.52683139]
[1771505817146,0.00311888,1951.3,1951.0,1.2485417]
[1771505817829,5.70342779,1951.5,1951.0,1.2485417]
[1771505818030,0.01822483,1951.4,1951.0,1.2485417]
[1771505819150,0.01822483,1951.4,1951.0,2.52987534]
[1771505820454,0.01822483,1951.4,1950.9,2.52997595]
[1771505820656,0.02969012,1951.2,1950.9,2.52997595]
[1771505822060,0.02969012,1951.2,1951.0,0.001]
[1771505823049,0.02969012,1951.2,1950.7,0.001]
[1771505823050,0.03523023,1951.0,1950.7,0.001]
[1771505823256,0.03794834,1950.7,1950.4,1.2495417]
[1771505823436,0.03794834,1950.7,1950.4,0.001]
[1771505823838,1.28148799,1950.9,1950.4,1.2495417]
[1771505823839,0.03794834,1950.9,1950.4,1.2495417]
[1771505824030,1.109,1951.0,1950.4,1.2495417]
[1771505824363,0.04063928,1951.0,1950.4,1.2495417]
[1771505825440,0.04063928,1951.0,1950.6,1.2485417]
[1771505827073,0.04852377,1951.1,1950.6,1.2485417]
[1771505827468,0.05107552,1951.0,1950.7,1.28159122]
[1771505827669,0.05107552,1951.0,1950.6,1.28165692]
[1771505828180,0.05107552,1951.0,1950.6,2.53019862]
[1771505828675,0.05107552,1951.0,1950.7,1.2485417]
[1771505829770,0.05107552,1951.0,1950.7,2.53009389]
[1771505830477,5.74379957,1951.3,1950.8,1.2485417]
[1771505830661,0.05969661,1951.3,1950.8,1.2485417]
[1771505830867,0.0011,1951.3,1950.8,1.2485417]
[1771505831374,0.0011,1951.4,1950.9,1.2479917]
[1771505831751,0.0011,1951.4,1951.1,1.2479917]
[1771505834871,0.0011,1951.3,1951.1,1.2479917]
[1771505835877,0.0011,1951.3,1950.6,2.32662891]
[1771505836086,0.07276466,1951.3,1950.7,1.2479917]
[1771505837758,1.28126281,1951.2,1950.7,1.2479917]
[1771505840692,0.08406843,1951.3,1950.7,1.2479917]
[1771505842470,0.08730223,1951.2,1950.7,1.2479917]
[1771505842792,0.08730223,1951.0,1950.7,1.2479917]
[1771505843183,0.08730223,1951.0,1950.6,1e-08]
[1771505844695,2.46640908,1950.9,1950.6,1e-08]
[1771505845073,1.18494925,1950.8,1950.5,0.001]
[1771505846898,2.46653289,1950.8,1950.5,0.001]
[1771505847095,2.46653289,1950.8,1950.7,0.001]
[1771505847273,1.18494925,1950.7,1950.5,0.001]
[1771505848992,2.46653289,1950.8,1950.5,0.001]
[1771505850302,1.18494925,1950.7,1950.5,0.001]
[1771505852205,5.12710727,1950.9,1950.7,1.19956769]
[1771505852394,0.76097399,1950.7,1950.5,0.18797044]
[1771505853399,0.76097399,1950.7,1950.5,0.001]
[1771505853601,1.97733764,1950.7,1950.5,0.001]
[1771505854119,3.25896516,1950.7,1950.5,0.001]
[1771505854403,1.21636365,1950.6,1950.5,0.001]
[1771505854601,2.04260151,1950.7,1950.5,0.001]
[1771505854906,0.76097399,1950.7,1950.5,0.001]
[1771505856717,0.76097399,1950.7,1950.5,0.21482646]
[1771505858083,2.49789361,1950.8,1950.5,0.21482646]
[1771505859378,2.49789361,1950.8,1950.6,0.001]
[1771505862318,1.29897669,1950.7,1950.5,0.001]
[1771505862689,1.29897669,1950.7,1950.4,0.001]
[1771505863005,1.29897669,1950.5,1950.1,1.28307451]
[1771505863311,1.29897669,1950.5,1950.1,0.24407451]
[1771505865639,1.29897669,1950.4,1950.1,0.24407451]
[1771505865829,1.29897669,1950.4,1950.0,0.25843157]
[1771505866025,1.29897669,1950.3,1949.9,1.29543157]
[1771505867110,1.29897669,1950.3,1949.9,0.25843157]
[1771505867315,1.29897669,1950.3,1949.8,0.99585834]
[1771505867522,1.29897669,1950.3,1949.8,1.26359018]
[1771505868039,1.29897669,1950.2,1949.8,1.26359018]
[1771505868241,1.29897669,1950.2,1949.8,2.54577147]
[1771505868414,1.29897669,1950.2,1949.9,0.27231534]
[1771505868940,1.29897669,1950.3,1949.9,0.27231534]
[1771505869241,2.58081002,1950.4,1949.9,0.27231534]
[1771505870542,1.29897669,1950.3,1949.9,1.28207172]
[1771505871111,1.29897669,1950.3,1949.9,1.28670235]
[1771505871442,1.29897669,1950.3,1949.9,0.00463063]
[1771505871629,1.29897669,1950.3,1949.9,1.28674563]
[1771505872049,1.29897669,1950.3,1950.0,0.001]
[1771505872726,1.29897669,1950.3,1950.0,0.01020803]
[1771505873442,1.29897669,1950.3,1949.9,0.01374569]
[1771505874421,1.35701411,1950.5,1949.9,0.01374569]
[1771505874725,1.35701411,1950.5,1950.1,0.01821216]
[1771505874918,1.35811411,1950.6,1950.1,0.01821216]
[1771505875451,2.63977121,1950.6,1950.1,0.01821216]
[1771505875822,1.35811411,1950.6,1950.1,0.01821216]
[1771505876024,2.63977732,1950.6,1950.1,0.01821216]
[1771505876433,1.35701411,1950.5,1950.1,0.01821216]
[1771505877247,1.35701411,1950.5,1950.1,1.30018608]
[1771505877433,1.35701411,1950.5,1950.2,0.03133209]
[1771505879249,1.35811411,1950.6,1950.2,0.03133209]
[1771505879451,1.35811411,1950.6,1950.2,1.31322766]
[1771505879751,1.35811411,1950.6,1950.1,5.12789315]
[1771505879752,1.35701411,1950.5,1950.1,0.03983434]
[1771505880342,1.35701411,1950.5,1950.0,0.04813445]
[1771505881251,1.35701411,1950.5,1949.8,3.31021078]
[1771505881458,1.3727301,1950.3,1949.8,3.31021078]
[1771505881657,1.3727301,1950.3,1949.8,2.02807165]
[1771505881854,1.3727301,1950.1,1949.8,1.97585834]
[1771505882347,1.3727301,1950.1,1949.8,0.93785834]
[1771505883157,1.3727301,1949.9,1949.5,0.06023512]
[1771505883357,1.3727301,1949.7,1949.4,0.06023512]
[1771505884937,1.3727301,1949.7,1949.4,1.3426727]
[1771505886266,10.8169762,1950.0,1949.5,0.07192365]
[1771505886267,1.3727301,1949.8,1949.5,0.07192365]
[1771505887036,1.35701411,1950.0,1949.5,0.07192365]
[1771505887868,1.35701411,1950.0,1949.5,1.28232585]
[1771505888051,1.35701411,1950.0,1949.6,0.07949069]
[1771505888567,1.35701411,1950.0,1949.5,1.28232585]
[1771505888568,1.35701411,1950.3,1949.8,0.08321273]
[1771505889344,1.35701411,1950.3,1949.8,0.02321273]
[1771505890361,1.35701411,1950.3,1949.9,0.03057554]
[1771505892363,1.35701411,1950.3,1949.9,1.31269223]
[1771505892563,1.38701411,1950.2,1949.9,0.03057554]
[1771505895577,1.38701411,1950.1,1949.7,1.038]
[1771505896870,1.38701411,1950.1,1949.7,1.08968427]
[1771505897049,1.38701411,1950.1,1949.7,2.37192964]
[1771505897677,1.38701411,1950.1,1949.7,2.37302964]
[1771505897979,0.001,1950.0,1949.7,2.37302964]
[1771505898381,1.38801411,1950.0,1949.7,2.37302964]
[1771505898557,1.38801411,1950.0,1949.7,1.0391]
[1771505899185,1.38801411,1950.0,1949.7,0.0011]
[1771505899966,1.38701411,1949.9,1949.7,0.0011]
[1771505901877,1.38701411,1949.9,1949.5,0.0011]
[1771505902273,6.24671133,1950.2,1949.5,0.0011]
[1771505902274,1.38646411,1950.2,1949.9,0.07238517]
[1771505902457,1.38756411,1950.4,1949.9,0.07238517]
[1771505903158,0.0011,1950.4,1950.0,0.07238517]
[1771505903363,1.38756411,1950.4,1950.0,0.07238517]
[1771505904585,1.38646411,1950.3,1950.0,1.35443365]
[1771505905193,0.0011,1950.7,1950.3,0.08165285]
[1771505905375,1.38756411,1950.9,1950.5,0.08165285]
[1771505905709,0.0011,1950.9,1950.5,0.08165285]
[1771505906577,0.0011,1950.9,1950.6,1.36633295]
[1771505907972,0.0011,1950.9,1950.7,0.08767629]
[1771505908894,0.0011,1950.9,1950.8,1.28152552]
[1771505912286,1.38756411,1950.9,1950.4,1.04]
[1771505912583,1.38746411,1950.8,1950.5,5.22894081]
[1771505912982,0.001,1950.8,1950.5,5.22894081]
[1771505913178,1.38746411,1950.8,1950.5,0.10489565]
[1771505914098,1.38746411,1950.8,1950.2,1.28188737]
[1771505914485,1.38746411,1950.8,1950.3,0.10765821]
[1771505916900,1.38746411,1950.8,1950.3,1.38949741]
[1771505918002,1.41799348,1950.7,1950.3,0.10765821]
[1771505918180,1.41799348,1950.7,1950.2,1.28186182]
[1771505918380,1.41799348,1950.7,1950.2,1.40285349]
[1771505919583,1.41799348,1950.7,1950.2,1.28186182]
[1771505920181,1.41799348,1950.7,1950.2,1.40798625]
[1771505920715,1.41799348,1950.6,1950.2,1.40803844]
[1771505922189,1.41799348,1950.6,1950.2,0.12612443]
[1771505922706,1.41799348,1950.6,1950.2,1.4080378]
[1771505924779,1.41799348,1950.6,1950.3,0.001]
[1771505924975,1.41799348,1950.5,1950.3,0.001]
[1771505925798,1.41799348,1950.4,1950.2,0.001]
[1771505926915,1.41799348,1950.6,1950.2,0.14281736]
[1771505929291,1.41799348,1950.6,1950.2,1.42472843]
[1771505929790,1.41799348,1950.5,1950.2,0.14281736]
[1771505930803,1.41799348,1950.5,1950.2,0.001]
[1771505931825,1.41799348,1950.4,1950.0,0.0011]
[1771505932324,1.41799348,1950.4,1949.9,1.37759969]
[1771505932620,1.41799348,1950.3,1949.8,2.42186055]
[1771505934001,1.41799348,1950.3,1949.8,1.042]
[1771505934324,1.41799348,1950.3,1949.7,2.42749081]
[1771505935213,1.41799348,1950.2,1949.8,0.10436895]
[1771505936237,1.41799348,1950.4,1949.8,0.10436895]
[1771505937308,1.41799348,1950.3,1949.8,1.39081716]
[1771505937623,1.41799348,1950.3,1949.8,1.28214215]
[1771505937809,1.41799348,1950.3,1949.9,0.0011]
[1771505938006,1.41899348,1950.3,1949.9,0.0011]
[1771505939437,1.41799348,1950.2,1949.9,0.0011]
[1771505940540,0.001,1950.3,1950.0,0.1169945]
[1771505941625,1.41586411,1950.3,1949.9,1.28317363]
[1771505941940,1.41586411,1950.3,1949.9,0.0011]
[1771505942240,1.41586411,1950.3,1949.9,1.28321453]
[1771505944038,1.41586411,1950.3,1949.9,1.40623068]
[1771505944208,1.41586411,1950.3,1950.0,0.12497243]
[1771505944544,1.41586411,1950.3,1949.9,1.28321453]
[1771505944545,2.69652838,1950.6,1950.1,0.12497243]
[1771505944747,1.41486411,1950.5,1950.1,0.12497243]
[1771505945117,1.41486411,1950.5,1949.9,1.28321453]
[1771505945118,1.41486411,1950.5,1949.9,1.40818696]
[1771505945642,1.41486411,1950.5,1949.9,1.28321453]
[1771505945848,6.97135823,1950.6,1949.8,0.0011]
[1771505945849,1.41486411,1950.1,1949.8,0.0011]
[1771505946032,1.41486411,1950.0,1949.8,0.0011]
[1771505949446,1.41486411,1949.9,1949.7,0.0011]
[1771505949743,1.41486411,1949.9,1949.3,0.13734402]
[1771505950817,1.41486411,1949.9,1949.8,0.0011]
[1771505951734,1.41431411,1950.1,1949.8,0.0011]
[1771505953625,2.69636539,1950.0,1949.8,0.0011]
[1771505954247,1.41431411,1949.9,1949.8,0.0011]
[1771505957851,1.41431411,1950.0,1949.8,0.0011]
[1771505958054,1.41531411,1950.2,1949.8,0.14584745]
[1771505958556,1.2829211,1950.2,1949.8,0.14584745]
[1771505958757,1.41431411,1950.1,1949.8,0.14584745]
[1771505962560,1.41431411,1950.1,1949.8,1.42801277]
[1771505962758,1.41531411,1950.2,1949.8,1.42801277]
[1771505962934,1.41531411,1950.2,1949.9,0.0011]
[1771505963136,0.001,1950.0,1949.9,0.0011]
[1771505963845,0.001,1950.0,1949.9,0.14819508]
[1771505964251,0.001,1950.2,1950.0,0.14647673]
[1771505964634,0.001,1950.2,1950.1,1.28198553]
[1771505964963,0.001,1950.2,1950.1,1.42846226]
[1771505966062,0.001,1950.2,1950.1,0.14647673]
[1771505967269,0.001,1950.2,1950.1,1.42846226]
[1771505967769,1.41581411,1950.2,1949.9,0.0011]
[1771505969540,1.41581411,1950.2,1949.9,0.14939108]
[1771505969770,0.001,1950.2,1949.9,0.14939108]
[1771505971858,0.001,1950.2,1949.9,1.43144376]
[1771505973098,0.001,1950.2,1949.9,0.0011]
[1771505973099,1.41581411,1950.2,1949.9,0.0011]
[1771505973990,1.41481411,1950.1,1949.9,0.0011]
[1771505974318,1.41481411,1950.1,1949.8,0.0011]
[1771505975058,1.41581411,1950.1,1949.8,0.0011]
[1771505975266,1.41581411,1950.1,1949.6,0.09328772]
[1771505976175,1.41581411,1950.1,1949.7,1.28224855]
[1771505976474,1.41581411,1950.1,1949.6,1.37554668]
[1771505976475,1.44316411,1950.0,1949.6,1.37554668]
[1771505984221,1.44316411,1950.0,1949.7,0.09715262]
[1771505984417,1.44316411,1950.0,1949.6,1.28225896]
[1771505984589,1.44316411,1950.0,1949.6,1.37941158]
[1771505986130,1.44316411,1950.0,1949.6,1.28225896]
[1771505987430,1.44316411,1950.0,1949.7,0.001]
[1771505987816,1.44426411,1950.0,1949.7,0.001]
[1771505990927,1.44426411,1950.0,1949.7,0.10009065]
[1771505991315,1.44426411,1950.0,1949.7,0.001]
[1771505992129,1.44316411,1949.9,1949.7,0.001]
[1771506000651,1.44416411,1949.9,1949.7,0.001]
[1771506001233,0.001,1949.9,1949.7,0.1035991]
[1771506001462,0.001,1950.2,1949.9,0.1014991]
[1771506002308,0.001,1950.2,1950.1,0.10177332]
[1771506002536,1.49319392,1950.6,1950.3,0.10177332]
[1771506002721,1.49429392,1950.7,1950.3,0.10177332]
[1771506002929,0.0011,1950.7,1950.3,0.10177332]
[1771506004012,1.49319392,1949.5,1948.4,7.60080843]
[1771506004236,7.97062892,1948.3,1946.9,0.1448417]
[1771506004436,12.9650783,1946.9,1946.5,1.38663894]
[1771506004760,0.49823754,1946.8,1946.7,0.10234839]
[1771506004907,2.18597603,1946.9,1946.6,10.82853043]
[1771506005107,7.63007318,1948.0,1946.9,1.41105958]
[1771506005319,7.63007318,1948.0,1946.6,5.13712063]
[1771506005320,7.63007318,1948.2,1947.4,0.82740666]
[1771506005522,6.81703668,1948.4,1947.4,0.80222256]
[1771506005720,5.67003668,1948.4,1947.5,2.47905958]
[1771506006226,5.67003668,1948.4,1947.6,1.28363113]